bitfinex/quotes_BTCUSD_20250412
["timestamp","ask_amount","ask_price","bid_price","bid_amount"]
[1744461809266,0.19115566,83725.0,83724.0,0.0028426]
[1744461810137,0.21346837,83725.0,83724.0,0.0008426]
[1744461810343,0.21446837,83725.0,83724.0,0.0008426]
[1744461817784,0.33530991,83725.0,83724.0,0.0008426]
[1744461820257,0.21446837,83725.0,83724.0,0.0008426]
[1744461821517,0.19215566,83725.0,83724.0,0.0491426]
[1744461821744,0.01215566,83725.0,83724.0,0.0491426]
[1744461821996,0.001,83725.0,83724.0,0.0971426]
[1744461822444,0.001,83727.0,83724.0,0.3479666]
[1744461822645,0.238874,83726.0,83724.0,0.0971426]
[1744461822858,0.408874,83726.0,83724.0,0.0008426]
[1744461824514,0.408874,83726.0,83724.0,0.0038426]
[1744461824693,0.01115422,83725.0,83724.0,0.0008426]
[1744461824903,0.03115422,83725.0,83724.0,0.0008426]
[1744461825611,0.01115422,83725.0,83724.0,0.0008426]
[1744461825767,0.002,83726.0,83725.0,0.238877]
[1744461826178,0.011942,83733.0,83729.0,0.011943]
[1744461826381,0.031942,83733.0,83729.0,0.011943]
[1744461826814,0.031942,83733.0,83730.0,0.011943]
[1744461827229,0.032942,83733.0,83730.0,0.011943]
[1744461828392,0.021,83733.0,83730.0,0.250805]
[1744461828511,0.02,83733.0,83730.0,0.250805]
[1744461828723,0.02,83733.0,83731.0,0.238857]
[1744461828934,0.02,83733.0,83732.0,0.0956]
[1744461829138,0.021,83733.0,83732.0,0.0956]
[1744461829587,0.02,83733.0,83732.0,0.0956]
[1744461829801,0.021,83733.0,83732.0,0.0956]
[1744461830432,0.02,83733.0,83732.0,0.0956]
[1744461830638,0.021,83733.0,83732.0,0.0956]
[1744461831064,0.001,83733.0,83732.0,0.0956]
[1744461831723,0.002,83733.0,83732.0,0.0956]
[1744461835734,0.011943,83727.0,83726.0,0.0498]
[1744461835954,0.191943,83727.0,83723.0,0.34]
[1744461836175,0.191943,83727.0,83723.0,0.351944]
[1744461836389,0.430817,83727.0,83723.0,0.351944]
[1744461837071,0.191943,83727.0,83723.0,0.351944]
[1744461837254,0.191943,83727.0,83724.0,0.0038426]
[1744461837706,0.238877,83725.0,83724.0,0.0038426]
[1744461838259,0.408877,83725.0,83724.0,0.0038426]
[1744461838932,0.54425939,83725.0,83724.0,0.0048426]
[1744461839368,0.54425939,83725.0,83724.0,0.0008426]
[1744461839781,0.54525939,83725.0,83724.0,0.0038426]
[1744461840005,0.54525939,83725.0,83724.0,0.0008426]
[1744461840433,0.54525939,83725.0,83724.0,0.0018426]
[1744461840663,0.29184154,83725.0,83724.0,0.0018426]
[1744461840892,0.171,83725.0,83724.0,0.0018426]
[1744461844999,0.001,83725.0,83724.0,0.0018426]
[1744461845200,0.001,83725.0,83724.0,0.00423114]
[1744461845400,0.001,83725.0,83724.0,0.0018426]
[1744461846147,0.001,83725.0,83724.0,0.17477268]
[1744461846562,0.001,83725.0,83724.0,0.51477268]
[1744461846775,0.001,83725.0,83724.0,0.51238414]
[1744461846925,1e-06,83725.0,83724.0,0.56058414]
[1744461847138,0.011939,83754.0,83739.0,0.676737]
[1744461847360,0.011939,83753.0,83740.0,0.00238807]
[1744461847559,0.011939,83754.0,83740.0,0.00238807]
[1744461847767,0.01194,83752.0,83740.0,0.00238807]
[1744461848107,0.011939,83754.0,83740.0,0.00238807]
[1744461848279,0.00313304,83741.0,83740.0,0.00238807]
[1744461848688,0.00013304,83741.0,83740.0,0.00238807]
[1744461849917,0.00013304,83741.0,83740.0,0.00438807]
[1744461850155,0.00013304,83741.0,83740.0,0.12284154]
[1744461850365,0.00013304,83741.0,83740.0,0.17422961]
[1744461850590,0.00013304,83741.0,83740.0,0.17184154]
[1744461850945,0.00013304,83741.0,83740.0,0.17422935]
[1744461851837,0.00013304,83741.0,83740.0,0.18168935]
[1744461853221,0.00013304,83741.0,83740.0,0.17930154]
[1744461853629,0.00013304,83741.0,83740.0,0.05846]
[1744461853960,0.00013304,83741.0,83740.0,0.297294]
[1744461854627,0.00013304,83741.0,83740.0,0.289834]
[1744461856544,0.00013304,83741.0,83740.0,0.002]
[1744461863852,0.00013304,83741.0,83740.0,0.46522975]
[1744461864061,0.00013304,83741.0,83740.0,0.55554154]
[1744461864276,0.00013304,83741.0,83740.0,0.56300155]
[1744461865158,0.00013304,83741.0,83740.0,0.56500155]
[1744461865376,0.00013304,83741.0,83740.0,0.56300155]
[1744461865589,0.00013304,83741.0,83740.0,0.56700155]
[1744461865803,0.00013304,83741.0,83740.0,0.56300155]
[1744461866155,0.00013304,83741.0,83740.0,0.56800155]
[1744461866561,0.00013304,83741.0,83740.0,0.56600155]
[1744461866880,0.00013304,83741.0,83740.0,0.56800155]
[1744461867090,0.00013304,83741.0,83740.0,0.97620056]
[1744461868945,4e-08,83741.0,83740.0,0.97620056]
[1744461869778,0.0004223,83759.0,83757.0,0.0927]
[1744461869987,0.0004223,83759.0,83758.0,0.1232289]
[1744461870191,0.0004223,83759.0,83758.0,0.13068891]
[1744461870850,0.0004223,83759.0,83758.0,0.92408792]
[1744461871071,0.0004223,83759.0,83758.0,0.92170056]
[1744461872199,0.0004223,83759.0,83758.0,0.92370056]
[1744461872631,0.0004223,83759.0,83758.0,0.92470056]
[1744461873046,0.0004223,83759.0,83758.0,0.92570056]
[1744461873458,0.0004223,83759.0,83758.0,0.92470056]
[1744461873769,0.0004223,83759.0,83758.0,0.92570056]
[1744461880469,0.0004223,83759.0,83758.0,0.98132239]
[1744461883454,0.0004223,83759.0,83758.0,0.92570056]
[1744461884111,0.0004223,83759.0,83758.0,0.88050056]
[1744461888016,0.0004223,83759.0,83758.0,0.93612239]
[1744461890755,0.0004223,83759.0,83758.0,0.88050056]
[1744461892902,0.0004223,83759.0,83758.0,0.92750056]
[1744461895203,0.0004223,83759.0,83758.0,0.75965902]
[1744461897075,0.0004223,83759.0,83758.0,0.88050056]
[1744461897883,0.0004223,83759.0,83758.0,0.92750056]
[1744461901680,0.0004223,83767.0,83759.0,0.62548]
[1744461901681,6e-07,83760.0,83759.0,0.62548]
[1744461901884,6e-07,83760.0,83759.0,0.74632154]
[1744461902078,9e-07,83767.0,83766.0,0.67366]
[1744461902280,9e-07,83767.0,83766.0,0.79450154]
[1744461902907,9e-07,83767.0,83766.0,0.80196155]
[1744461903318,9e-07,83767.0,83766.0,0.80596155]
[1744461903603,9e-07,83767.0,83766.0,0.80796155]
[1744461903836,9e-07,83767.0,83766.0,0.81196155]
[1744461904009,9e-07,83767.0,83766.0,0.80996155]
[1744461905209,9e-07,83767.0,83766.0,1.21816056]
[1744461905411,9e-07,83767.0,83766.0,1.22016056]
[1744461905842,9e-07,83767.0,83766.0,1.00441902]
[1744461906045,9e-07,83767.0,83766.0,0.66441902]
[1744461906238,9e-07,83767.0,83766.0,1.00441902]
[1744461906645,9e-07,83767.0,83766.0,0.99641902]
[1744461907046,9e-07,83767.0,83766.0,0.99541902]
[1744461907245,9e-07,83767.0,83766.0,0.00846001]
[1744461907559,0.01341611,83767.0,83766.0,0.01046001]
[1744461907793,0.01341611,83767.0,83766.0,0.003]
[1744461908657,0.01341611,83767.0,83766.0,0.001]
[1744461908805,0.01341611,83767.0,83766.0,0.002]
[1744461914198,0.01341611,83767.0,83766.0,0.24076]
[1744461915144,0.01341611,83767.0,83766.0,0.002]
[1744461921502,0.01341611,83767.0,83766.0,0.342]
[1744461922403,0.01341611,83767.0,83766.0,0.002]
[1744461922809,0.05951611,83767.0,83766.0,0.002]
[1744461923020,0.11025136,83767.0,83766.0,0.002]
[1744461923226,0.011938,83760.0,83757.0,0.00046477]
[1744461923432,0.121938,83760.0,83757.0,0.00046477]
[1744461924015,0.238782,83759.0,83757.0,0.00046477]
[1744461924212,0.398782,83759.0,83757.0,0.00046477]
[1744461925409,0.400782,83759.0,83757.0,0.00046477]
[1744461925879,0.398782,83759.0,83757.0,0.00046477]
[1744461926348,0.404782,83759.0,83757.0,0.00046477]
[1744461930099,0.12084154,83758.0,83757.0,0.00046477]
[1744461930277,0.31084154,83758.0,83757.0,0.00046477]
[1744461931817,0.31284154,83758.0,83757.0,0.00046477]
[1744461932407,0.31684154,83758.0,83757.0,0.00046477]
[1744461933877,0.3259657,83758.0,83757.0,0.00046477]
[1744461934735,0.196,83758.0,83757.0,0.00046477]
[1744461934936,0.196,83758.0,83757.0,0.23925077]
[1744461935081,0.006,83758.0,83757.0,0.36009231]
[1744461935544,0.004,83758.0,83757.0,0.36009231]
[1744461935721,9e-07,83767.0,83766.0,0.23876]
[1744461937280,0.0040009,83767.0,83766.0,0.23876]
[1744461937491,0.0140009,83767.0,83766.0,0.23876]
[1744461937693,0.0040009,83767.0,83766.0,0.23876]
[1744461938554,0.0060009,83767.0,83766.0,0.23876]
[1744461941228,0.238771,83762.0,83761.0,0.05587674]
[1744461941438,0.248771,83762.0,83761.0,0.05587674]
[1744461942527,0.001,83762.0,83761.0,0.05587674]
[1744461942736,0.001,83762.0,83761.0,0.00238745]
[1744461942909,0.003,83762.0,83760.0,0.238775]
[1744461943782,0.002,83762.0,83760.0,0.238775]
[1744461944281,0.003,83762.0,83760.0,0.238775]
[1744461944511,0.003,83762.0,83761.0,0.05587674]
[1744461944727,0.021,83762.0,83761.0,0.05587674]
[1744461945117,0.023,83762.0,83761.0,0.05587674]
[1744461945341,0.021,83762.0,83761.0,0.05587674]
[1744461945547,0.02,83762.0,83761.0,0.05587674]
[1744461945774,0.023,83762.0,83761.0,0.05587674]
[1744461946684,0.023,83762.0,83760.0,0.238774]
[1744461947521,0.022,83762.0,83760.0,0.238774]
[1744461947841,0.023,83762.0,83760.0,0.238774]
[1744461948087,0.021,83762.0,83760.0,0.238774]
[1744461948345,0.023,83762.0,83760.0,0.238774]
[1744461948607,0.023,83762.0,83761.0,0.238774]
[1744461948844,0.023,83762.0,83759.0,0.250719]
[1744461949089,0.023,83762.0,83761.0,0.238774]
[1744461949607,0.032938,83762.0,83757.0,0.00046477]
[1744461949849,0.011938,83760.0,83757.0,0.00046477]
[1744461950081,0.238783,83758.0,83757.0,0.00046477]
[1744461950273,0.08,83758.0,83757.0,0.05634151]
[1744461952180,0.08,83758.0,83757.0,0.00046477]
[1744461952384,0.081,83758.0,83757.0,0.00046477]
[1744461953828,0.082,83758.0,83757.0,0.00046477]
[1744461954231,0.08,83758.0,83757.0,0.00046477]
[1744461954644,0.083,83758.0,83757.0,0.00046477]
[1744461955026,0.08,83758.0,83757.0,0.00046477]
[1744461955219,0.082,83758.0,83757.0,0.00046477]
[1744461955528,0.086,83758.0,83757.0,0.00046477]
[1744461960246,0.09716007,83758.0,83757.0,0.00046477]
[1744461960995,0.02716007,83758.0,83757.0,0.33075077]
[1744461961203,0.01716007,83758.0,83757.0,0.33075077]
[1744461961611,0.002,83758.0,83757.0,0.33075077]
[1744461961961,0.005,83758.0,83757.0,0.33075077]
[1744461962181,0.003,83758.0,83757.0,0.33075077]
[1744461962566,0.004,83758.0,83757.0,0.33075077]
[1744461962772,0.004,83758.0,83757.0,0.00046477]
[1744461962773,0.014,83758.0,83757.0,0.00046477]
[1744461963703,0.015,83758.0,83757.0,0.00046477]
[1744461964081,0.014,83758.0,83757.0,0.00046477]
[1744461964288,0.03632201,83758.0,83757.0,0.00046477]
[1744461964493,0.16832415,83758.0,83757.0,0.00046477]
[1744461965115,0.1774939,83758.0,83757.0,0.00046477]
[1744461965916,0.1734939,83758.0,83757.0,0.00046477]
[1744461966115,0.1774939,83758.0,83757.0,0.00046477]
[1744461967380,0.1794939,83758.0,83757.0,0.00046477]
[1744461969740,0.19403475,83758.0,83757.0,0.00046477]
[1744461975067,0.26358143,83758.0,83757.0,0.00046477]
[1744461975278,0.35828143,83758.0,83757.0,0.00046477]
[1744461975686,0.62873475,83758.0,83757.0,0.00046477]
[1744461975807,1.04753475,83758.0,83757.0,0.00046477]
[1744461976002,1.04553475,83758.0,83757.0,0.00046477]
[1744461976406,1.04153475,83758.0,83757.0,0.00046477]
[1744461976608,0.011941,83743.0,83740.0,0.05592643]
[1744461976806,0.35966954,83742.0,83740.0,0.05592643]
[1744461977016,0.51966954,83742.0,83740.0,0.05592643]
[1744461977211,0.02232201,83741.0,83740.0,0.05592643]
[1744461977463,0.18232201,83741.0,83740.0,0.05592643]
[1744461977920,0.19348261,83741.0,83740.0,0.05592643]
[1744461978766,0.19348261,83741.0,83725.0,0.238876]
[1744461978767,0.011942,83735.0,83725.0,0.238876]
[1744461979064,0.2500116,83734.0,83727.0,0.011943]
[1744461979267,0.4100116,83734.0,83727.0,0.011943]
[1744461979461,0.02232201,83733.0,83725.0,0.011943]
[1744461979666,0.18232201,83733.0,83727.0,0.011943]
[1744461979868,0.18232201,83733.0,83728.0,0.011943]
[1744461980067,0.18232201,83733.0,83729.0,0.011943]
[1744461980341,0.18232201,83733.0,83728.0,0.011943]
[1744461980486,0.18232201,83733.0,83729.0,0.011943]
[1744461980668,0.19348261,83733.0,83729.0,0.011943]
[1744461980867,0.19348261,83733.0,83728.0,0.011943]
[1744461981812,0.19548261,83733.0,83729.0,0.011943]
[1744461982088,0.19848261,83733.0,83729.0,0.011943]
[1744461982734,0.19848261,83733.0,83730.0,0.011943]
[1744461982938,0.19848261,83733.0,83729.0,0.250806]
[1744461982939,0.43733661,83733.0,83729.0,0.011943]
[1744461983120,0.19848261,83733.0,83732.0,0.287601]
[1744461983551,0.1761606,83733.0,83732.0,0.048744]
[1744461983776,0.1761606,83733.0,83732.0,0.000844]
[1744461983993,0.1741606,83733.0,83732.0,0.000844]
[1744461984181,0.1751606,83733.0,83732.0,0.000844]
[1744461984829,0.1711606,83733.0,83732.0,0.000844]
[1744461985067,0.1711606,83733.0,83732.0,0.00074399]
[1744461985068,0.18429763,83733.0,83732.0,0.00074399]
[1744461985333,0.18629763,83733.0,83732.0,0.00074399]
[1744461985642,0.18929763,83733.0,83732.0,0.00074399]
[1744461986755,0.20044642,83733.0,83732.0,0.00074399]
[1744461988333,0.04044642,83733.0,83732.0,0.00074399]
[1744461988774,0.03844642,83733.0,83732.0,0.00074399]
[1744461988990,0.03344642,83733.0,83732.0,0.00074399]
[1744461989200,0.04344642,83733.0,83732.0,0.00074399]
[1744461989415,0.04444642,83733.0,83732.0,0.00074399]
[1744462000535,0.04344642,83733.0,83732.0,0.00074399]
[1744462000756,0.04544642,83733.0,83732.0,0.00074399]
[1744462000952,0.04944642,83733.0,83732.0,0.00074399]
[1744462001456,0.05826302,83733.0,83732.0,0.00074399]
[1744462001895,0.04944642,83733.0,83732.0,0.00074399]
[1744462006242,0.04944642,83733.0,83732.0,0.04904399]
[1744462007111,0.04744642,83733.0,83732.0,0.04904399]
[1744462007348,0.04344642,83733.0,83732.0,0.00074399]
[1744462008132,0.04444642,83733.0,83732.0,0.00074399]
[1744462008580,0.02214879,83733.0,83732.0,0.00074399]
[1744462008795,0.02514879,83733.0,83732.0,0.00074399]
[1744462010303,0.02714879,83733.0,83732.0,0.00074399]
[1744462014380,0.02714879,83733.0,83732.0,0.23960099]
[1744462015505,0.02114879,83733.0,83732.0,0.23960099]
[1744462018174,0.02114879,83733.0,83732.0,0.29552742]
[1744462020288,0.02114879,83733.0,83732.0,0.23960099]
[1744462023137,0.02114879,83733.0,83732.0,0.00074399]
[1744462024814,0.02714879,83733.0,83732.0,0.00074399]
[1744462025431,0.02514879,83733.0,83732.0,0.00074399]
[1744462025628,0.14399033,83733.0,83732.0,0.00074399]
[1744462026034,0.14799033,83733.0,83732.0,0.00074399]
[1744462027404,1.10506091,83733.0,83732.0,9.9e-07]
[1744462027858,1.01383118,83733.0,83732.0,9.9e-07]
[1744462028071,1.04736676,83733.0,83732.0,9.9e-07]
[1744462028250,1.00783118,83733.0,83732.0,9.9e-07]
[1744462028659,1.01583118,83733.0,83732.0,9.9e-07]
[1744462028851,1.01083118,83733.0,83732.0,9.9e-07]
[1744462029052,0.99968239,83733.0,83732.0,9.9e-07]
[1744462029270,1.01590568,83733.0,83732.0,9.9e-07]
[1744462029793,1.01290568,83733.0,83732.0,9.9e-07]
[1744462031181,1.02806513,83733.0,83732.0,9.9e-07]
[1744462031393,1.19366513,83733.0,83732.0,9.9e-07]
[1744462032366,1.13182428,83733.0,83732.0,9.9e-07]
[1744462032620,0.03515945,83733.0,83732.0,0.23885799]
[1744462032816,0.03515945,83733.0,83732.0,9.9e-07]
[1744462033237,0.02515945,83733.0,83732.0,0.23885799]
[1744462033951,0.014,83733.0,83732.0,0.23885799]
[1744462034173,0.01194,83746.0,83743.0,0.011941]
[1744462034383,0.01194,83746.0,83745.0,0.23882]
[1744462034384,0.17,83746.0,83745.0,0.23882]
[1744462035005,0.01496315,83774.0,83757.0,0.238786]
[1744462035006,0.011938,83764.0,83757.0,0.238786]
[1744462035231,0.17046564,83758.0,83755.0,0.25073]
[1744462035851,0.01114039,83757.0,83755.0,0.25073]
[1744462036060,0.17114039,83757.0,83753.0,0.011939]
[1744462036239,0.17114039,83757.0,83753.0,0.250733]
[1744462036435,0.17114039,83757.0,83754.0,0.011939]
[1744462036640,0.01114039,83756.0,83754.0,0.011939]
[1744462036841,0.17114039,83756.0,83754.0,0.011939]
[1744462037848,0.01114039,83755.0,83754.0,0.011939]
[1744462038067,0.20114039,83755.0,83754.0,0.011939]
[1744462039137,0.21214039,83755.0,83754.0,0.011939]
[1744462040479,0.20695833,83755.0,83754.0,0.011939]
[1744462040680,0.20695833,83755.0,83746.0,0.250757]
[1744462040681,0.238814,83747.0,83743.0,0.011941]
[1744462040920,0.03194,83747.0,83744.0,0.299463]
[1744462041158,0.03194,83747.0,83735.0,0.45769901]
[1744462041159,0.238817,83746.0,83739.0,0.05601141]
[1744462041390,0.238834,83740.0,83739.0,0.05601141]
[1744462041654,0.398834,83740.0,83739.0,0.05601141]
[1744462041881,0.16,83740.0,83739.0,0.05601141]
[1744462043060,0.161,83740.0,83739.0,0.05601141]
[1744462043490,0.161,83740.0,83738.0,0.238839]
[1744462044093,0.001,83740.0,83739.0,0.12322983]
[1744462044303,0.001,83740.0,83739.0,0.17202946]
[1744462044514,0.002,83740.0,83739.0,0.16964154]
[1744462044734,0.002,83740.0,83739.0,0.50964154]
[1744462044735,0.001,83740.0,83739.0,0.50964154]
[1744462045206,0.002,83740.0,83739.0,0.50964154]
[1744462045434,0.011938,83764.0,83755.0,0.011939]
[1744462045658,0.03046564,83758.0,83755.0,0.011939]
[1744462046304,0.03046564,83758.0,83755.0,0.250728]
[1744462046533,0.03046564,83758.0,83749.0,0.250746]
[1744462046744,0.011939,83756.0,83751.0,0.250741]
[1744462046916,0.191939,83756.0,83753.0,0.011939]
[1744462047219,0.18,83756.0,83753.0,0.250736]
[1744462047719,0.18,83756.0,83754.0,0.238791]
[1744462048131,0.182,83756.0,83754.0,0.238791]
[1744462048356,0.185,83756.0,83754.0,0.238791]
[1744462048685,0.18,83756.0,83754.0,0.238791]
[1744462048904,0.18,83756.0,83754.0,0.238792]
[1744462048905,0.182,83756.0,83754.0,0.238792]
[1744462049081,0.186,83756.0,83754.0,0.238792]
[1744462058360,0.436728,83756.0,83753.0,0.011939]
[1744462058564,0.197939,83756.0,83753.0,0.011939]
[1744462059706,0.195939,83756.0,83753.0,0.011939]
[1744462059910,0.434729,83756.0,83751.0,0.250742]
[1744462060150,0.436729,83756.0,83751.0,0.250742]
[1744462060360,0.432729,83756.0,83752.0,0.01194]
[1744462060708,0.432729,83756.0,83746.0,0.250755]
[1744462060709,0.238811,83748.0,83743.0,0.011941]
[1744462060857,0.01194,83747.0,83744.0,0.011941]
[1744462061064,0.01194,83747.0,83743.0,0.011941]
[1744462061065,0.01194,83746.0,83743.0,0.011941]
[1744462061292,0.16,83746.0,83744.0,0.011941]
[1744462061480,0.16,83746.0,83745.0,0.23882]
[1744462065884,0.238825,83744.0,83738.0,0.25078]
[1744462066066,0.011941,83743.0,83740.0,0.011941]
[1744462066205,0.051941,83743.0,83740.0,0.011941]
[1744462066407,0.04,83743.0,83741.0,0.238831]
[1744462067739,0.042,83743.0,83741.0,0.238831]
[1744462068215,0.041,83743.0,83741.0,0.238831]
[1744462068651,0.043,83743.0,83741.0,0.238831]
[1744462069687,0.043,83743.0,83738.0,0.25078]
[1744462069891,0.054941,83743.0,83739.0,0.011941]
[1744462070300,0.054941,83743.0,83739.0,0.250776]
[1744462070476,0.054941,83743.0,83737.0,0.011942]
[1744462070477,0.02310904,83742.0,83737.0,0.011942]
[1744462070678,0.011942,83738.0,83734.0,0.25079]
[1744462070922,0.16,83738.0,83736.0,0.011942]
[1744462071287,0.16,83738.0,83737.0,0.238843]
[1744462072460,0.16,83738.0,83737.0,0.288543]
[1744462072649,0.001,83742.0,83741.0,0.238831]
[1744462073069,0.011939,83753.0,83749.0,0.250747]
[1744462073313,0.171939,83753.0,83749.0,0.250747]
[1744462073526,0.16,83753.0,83750.0,0.250743]
[1744462074415,0.163,83753.0,83750.0,0.250743]
[1744462074679,0.169,83753.0,83750.0,0.250743]
[1744462074892,0.169,83753.0,83752.0,0.2388]
[1744462075115,0.169,83753.0,83750.0,0.250743]
[1744462075807,0.166,83753.0,83750.0,0.250743]
[1744462076268,0.169,83753.0,83750.0,0.250743]
[1744462076725,0.169,83753.0,83751.0,0.2388]
[1744462077200,0.169,83753.0,83750.0,0.250743]
[1744462077589,0.01194,83752.0,83746.0,0.250756]
[1744462077782,0.18194,83752.0,83746.0,0.250756]
[1744462077940,0.18194,83752.0,83748.0,0.250751]
[1744462078146,0.01194,83751.0,83748.0,0.01194]
[1744462078487,0.16194,83751.0,83748.0,0.01194]
[1744462078624,0.15,83751.0,83748.0,0.01194]
[1744462079454,0.011941,83744.0,83739.0,0.238836]
[1744462079720,0.17,83744.0,83739.0,0.238836]
[1744462079901,0.17,83744.0,83741.0,0.250772]
[1744462080892,0.172,83744.0,83743.0,0.238825]
[1744462081111,0.171,83744.0,83741.0,0.250772]
[1744462081519,0.173,83744.0,83741.0,0.250772]
[1744462081898,0.176,83744.0,83741.0,0.250772]
[1744462082135,0.175,83744.0,83741.0,0.011941]
[1744462082334,0.175,83744.0,83741.0,0.06795241]
[1744462082493,0.176,83744.0,83741.0,0.06795241]
[1744462083159,0.171,83744.0,83742.0,0.238828]
[1744462083603,0.173,83744.0,83742.0,0.238828]
[1744462084100,0.173,83744.0,83741.0,0.06795241]
[1744462084101,0.238825,83743.0,83741.0,0.05601141]
[1744462084322,0.20392899,83742.0,83741.0,0.05601141]
[1744462084601,0.20392899,83742.0,83721.0,0.0491]
[1744462084602,0.25337185,83741.0,83740.0,0.05601141]
[1744462084860,0.54421339,83741.0,83740.0,0.05601141]
[1744462085235,0.88421339,83741.0,83740.0,0.05601141]
[1744462085406,0.89627287,83741.0,83740.0,0.05601141]
[1744462085580,1.43580135,83741.0,83740.0,0.05601141]
[1744462085791,1.43580135,83741.0,83723.0,0.000844]
[1744462085792,0.238877,83725.0,83723.0,0.000844]
[1744462085991,0.70477939,83725.0,83723.0,0.000844]
[1744462086195,0.75107939,83725.0,83723.0,0.000844]
[1744462087090,0.75607939,83725.0,83724.0,0.00097564]
[1744462087680,0.87680787,83725.0,83724.0,0.00097564]
[1744462088112,0.75607939,83725.0,83724.0,0.00097564]
[1744462089646,0.71884176,83725.0,83724.0,0.00097564]
[1744462089898,0.175,83725.0,83724.0,0.00097564]
[1744462095886,0.31038239,83725.0,83724.0,0.00097564]
[1744462096896,0.30538239,83725.0,83724.0,0.00097564]
[1744462097102,0.30938239,83725.0,83724.0,0.00097564]
[1744462097307,0.31538239,83725.0,83724.0,0.00097564]
[1744462098667,0.47594239,83725.0,83724.0,0.00097564]
[1744462102044,0.64447087,83725.0,83724.0,0.00097564]
[1744462102462,0.98447087,83725.0,83724.0,0.00097564]
[1744462102663,1.40327087,83725.0,83724.0,0.00097564]
[1744462103721,1.40327087,83725.0,83723.0,0.000844]
[1744462103722,0.59342085,83724.0,83723.0,6.4e-07]
[1744462103888,0.88426239,83724.0,83723.0,6.4e-07]
[1744462104286,1.00499087,83724.0,83723.0,6.4e-07]
[1744462104498,0.93006239,83724.0,83723.0,6.4e-07]
[1744462104703,0.93106239,83724.0,83723.0,6.4e-07]
[1744462105643,0.59342585,83722.0,83721.0,6.4e-07]
[1744462105844,0.88426739,83722.0,83721.0,6.4e-07]
[1744462105986,1.00499587,83722.0,83721.0,6.4e-07]
[1744462106184,1.00505701,83722.0,83721.0,6.4e-07]
[1744462106397,1.00505701,83722.0,83716.0,2.4e-07]
[1744462106398,0.59344085,83717.0,83716.0,2.4e-07]
[1744462106604,0.59345485,83712.0,83711.0,4.4e-07]
[1744462106829,0.85709639,83712.0,83711.0,4.4e-07]
[1744462107529,1.27589639,83712.0,83711.0,4.4e-07]
[1744462108536,1.43649639,83712.0,83711.0,4.4e-07]
[1744462108743,1.42195554,83712.0,83711.0,4.4e-07]
[1744462108948,1.44749639,83712.0,83711.0,0.00100044]
[1744462109152,0.93235554,83712.0,83711.0,0.00100044]
[1744462109360,1.09295554,83712.0,83711.0,0.00100044]
[1744462109734,1.08195554,83712.0,83711.0,4.4e-07]
[1744462109936,1.10949639,83712.0,83711.0,0.00100044]
[1744462111671,1.09495554,83712.0,83711.0,0.00100044]
[1744462111932,0.974114,83712.0,83711.0,0.00100044]
[1744462112881,1.23022487,83712.0,83711.0,0.00100044]
[1744462113097,1.10949639,83712.0,83711.0,0.00100044]
[1744462113308,0.69069639,83712.0,83711.0,0.00100044]
[1744462118621,1.03069639,83712.0,83711.0,0.00100044]
[1744462119300,1.44949639,83712.0,83711.0,0.00100044]
[1744462122797,1.28889639,83712.0,83711.0,0.00100044]
[1744462123014,1.44941639,83712.0,83711.0,0.00100044]
[1744462124762,1.57014487,83712.0,83711.0,0.00100044]
[1744462125225,1.57014487,83712.0,83706.0,0.0008446]
[1744462125226,0.578928,83707.0,83706.0,4.4e-07]
[1744462125588,1.34241039,83707.0,83706.0,4.4e-07]
[1744462126400,1.35262771,83707.0,83706.0,4.4e-07]
[1744462126787,1.34862771,83707.0,83706.0,4.4e-07]
[1744462127149,1.28478686,83707.0,83706.0,4.4e-07]
[1744462127347,1.44530686,83707.0,83706.0,4.4e-07]
[1744462127546,1.45230686,83707.0,83706.0,0.00100044]
[1744462127745,1.46684771,83707.0,83706.0,0.00100044]
[1744462128358,1.46584771,83707.0,83706.0,4.4e-07]
[1744462128993,1.47284771,83707.0,83706.0,0.00100044]
[1744462129453,1.46684771,83707.0,83706.0,0.00100044]
[1744462129575,1.48079155,83707.0,83706.0,0.00100044]
[1744462129779,1.13461423,83707.0,83706.0,0.00100044]
[1744462130204,1.25534271,83707.0,83706.0,0.00100044]
[1744462130814,1.13461423,83707.0,83706.0,0.00100044]
[1744462131017,0.71581423,83707.0,83706.0,0.00100044]
[1744462141235,0.55525423,83707.0,83706.0,0.00100044]
[1744462141438,0.71577423,83707.0,83706.0,0.00100044]
[1744462142510,0.71581423,83707.0,83706.0,0.00100044]
[1744462143661,0.75329864,83707.0,83706.0,0.00100044]
[1744462144080,0.75329864,83707.0,83698.0,6.4e-07]
[1744462144081,0.59349185,83699.0,83698.0,6.4e-07]
[1744462144297,0.89433339,83699.0,83698.0,6.4e-07]
[1744462145237,0.89833339,83699.0,83698.0,6.4e-07]
[1744462146155,0.90233339,83699.0,83698.0,0.00100064]
[1744462146685,0.54779254,83699.0,83698.0,0.00100064]
[1744462146929,0.54779254,83699.0,83698.0,0.05040064]
[1744462147135,0.426951,83699.0,83698.0,0.05040064]
[1744462147362,0.188,83699.0,83698.0,0.05040064]
[1744462147578,0.188,83699.0,83698.0,0.33875464]
[1744462148476,0.184,83699.0,83698.0,0.33775464]
[1744462148699,0.186,83699.0,83698.0,0.09880064]
[1744462148915,0.420951,83699.0,83698.0,0.09880064]
[1744462149142,0.18,83699.0,83698.0,0.33775464]
[1744462149355,0.181,83699.0,83698.0,0.33775464]
[1744462149765,0.001,83699.0,83698.0,0.33775464]
[1744462150189,0.003,83699.0,83698.0,0.33775464]
[1744462150683,0.011945,83713.0,83710.0,0.011946]
[1744462150830,0.181945,83713.0,83711.0,0.0489]
[1744462151037,0.420857,83713.0,83711.0,0.0489]
[1744462151442,0.420857,83713.0,83698.0,0.05140064]
[1744462151443,0.238951,83699.0,83698.0,0.05140064]
[1744462151676,0.398951,83699.0,83698.0,6.4e-07]
[1744462153903,0.401951,83699.0,83698.0,0.00100064]
[1744462154313,0.398951,83699.0,83698.0,6.4e-07]
[1744462154466,0.400951,83699.0,83698.0,6.4e-07]
[1744462154664,0.402951,83699.0,83698.0,6.4e-07]
[1744462161804,0.164,83699.0,83698.0,6.4e-07]
[1744462163198,0.162,83699.0,83698.0,6.4e-07]
[1744462163460,0.16,83699.0,83698.0,6.4e-07]
[1744462163672,0.161,83699.0,83698.0,6.4e-07]
[1744462166286,0.29638239,83699.0,83698.0,6.4e-07]